bitfinex-derivatives/quotes_BTCF0:USTF0_20260106
["timestamp","ask_amount","ask_price","bid_price","bid_amount"]
[1767708672089,0.010636,94041.0,94028.0,0.0176367]
[1767708672284,0.010636,94041.0,94024.0,0.01662889]
[1767708672678,0.010636,94041.0,94026.0,0.17685388]
[1767708672879,0.010636,94041.0,94027.0,0.01662889]
[1767708673078,0.010636,94038.0,94027.0,0.01662889]
[1767708673291,0.010636,94038.0,94027.0,0.17552521]
[1767708673490,0.010637,94035.0,94027.0,0.01662889]
[1767708673788,0.010637,94035.0,94028.0,3.2e-07]
[1767708674190,0.010637,94035.0,94023.0,0.01567271]
[1767708674384,0.010636,94039.0,94023.0,0.01567271]
[1767708674690,0.010636,94039.0,94024.0,0.08950299]
[1767708675185,0.010636,94036.0,94024.0,0.09822022]
[1767708675583,0.010635,94045.0,94026.0,0.01369107]
[1767708675888,0.010635,94046.0,94031.0,0.01369107]
[1767708676887,0.10823085,94049.0,94032.0,0.010637]
[1767708677076,0.10823085,94049.0,94031.0,0.01369107]
[1767708677282,0.09759585,94049.0,94033.0,0.01114889]
[1767708678481,0.09759585,94049.0,94030.0,0.10869431]
[1767708678482,0.09044,94052.0,94035.0,0.017419]
[1767708678688,0.10822985,94054.0,94035.0,0.017419]
[1767708678884,0.09044,94053.0,94035.0,0.017419]
[1767708679085,0.10823085,94052.0,94035.0,0.017419]
[1767708679295,0.10823085,94052.0,94036.0,0.01646019]
[1767708679681,0.603553,94068.0,94035.0,0.01646019]
[1767708679682,0.010634,94057.0,94035.0,0.01646019]
[1767708679886,0.010634,94055.0,94038.0,0.01646019]
[1767708680087,0.010634,94059.0,94041.0,0.01646019]
[1767708680286,0.010634,94056.0,94041.0,0.01646019]
[1767708680988,0.11932831,94060.0,94041.0,0.01646019]
[1767708681180,0.010634,94057.0,94041.0,0.01646019]
[1767708682088,0.10822985,94057.0,94038.0,0.010636]
[1767708682395,0.09759585,94055.0,94039.0,0.00619942]
[1767708682695,0.20629016,94060.0,94041.0,0.00619942]
[1767708682987,0.10822985,94058.0,94041.0,0.00619942]
[1767708683294,0.09759585,94055.0,94040.0,0.10869431]
[1767708683890,0.10822985,94060.0,94041.0,0.00527794]
[1767708684285,0.010634,94057.0,94041.0,0.00527794]
[1767708684486,0.10822985,94057.0,94041.0,0.00527794]
[1767708684788,0.10822985,94057.0,94036.0,0.010636]
[1767708684789,0.10822985,94057.0,94040.0,0.10869431]
[1767708685190,0.10822985,94057.0,94037.0,0.00300402]
[1767708685390,0.10822985,94057.0,94040.0,0.10869431]
[1767708685785,0.010634,94055.0,94040.0,0.10869431]
[1767708685996,0.010635,94053.0,94037.0,0.00300402]
[1767708686196,0.09759585,94056.0,94040.0,0.10869431]
[1767708686392,0.09759585,94049.0,94027.0,0.010637]
[1767708686700,0.09759585,94049.0,94028.0,0.2499694]
[1767708686894,0.010635,94047.0,94030.0,0.10869431]
[1767708687094,0.010635,94045.0,94030.0,0.10869431]
[1767708687695,0.010635,94048.0,94030.0,0.010637]
[1767708687900,0.010635,94048.0,94030.0,0.11933131]
[1767708688090,0.010635,94046.0,94030.0,0.11933131]
[1767708688696,0.010635,94046.0,94030.0,0.010637]
[1767708688892,0.010635,94046.0,94030.0,0.11933131]
[1767708689091,0.09759585,94055.0,94032.0,0.010637]
[1767708689400,0.010635,94049.0,94031.0,0.04175456]
[1767708689599,0.010635,94049.0,94032.0,0.010637]
[1767708689902,0.17808683,94054.0,94036.0,0.010636]
[1767708690093,0.010635,94052.0,94036.0,0.010636]
[1767708690493,0.010635,94052.0,94031.0,0.04175456]
[1767708690494,0.09759585,94054.0,94038.0,0.01073716]
[1767708690699,0.010635,94051.0,94038.0,0.00010116]
[1767708690900,0.010635,94051.0,94035.0,0.01073716]
[1767708691306,0.010634,94053.0,94036.0,0.010636]
[1767708691793,0.010634,94053.0,94040.0,0.10869431]
[1767708692405,0.09759585,94054.0,94040.0,0.10869431]
[1767708692609,0.09759585,94054.0,94031.0,0.04175456]
[1767708692610,0.09759585,94054.0,94035.0,0.010636]
[1767708693398,0.010635,94053.0,94038.0,0.010636]
[1767708693697,0.1021271,94053.0,94038.0,0.010636]
[1767708693898,0.0914921,94053.0,94031.0,0.04175456]
[1767708694093,0.0914921,94053.0,94038.0,0.010636]
[1767708694298,0.0914921,94053.0,94040.0,0.010636]
[1767708695408,0.0914921,94053.0,94033.0,0.09044]
[1767708695409,0.0914921,94053.0,94042.0,0.010636]
[1767708696002,0.17499464,94053.0,94042.0,0.010636]
[1767708696308,0.0914921,94052.0,94039.0,0.010636]
[1767708696707,0.0914921,94052.0,94036.0,0.010636]
[1767708696708,0.1021271,94052.0,94036.0,0.010636]
[1767708697302,0.1021271,94052.0,94033.0,0.09044]
[1767708697603,0.0914921,94049.0,94035.0,0.010636]
[1767708697798,0.0914921,94049.0,94033.0,0.09044]
[1767708698612,0.010634,94057.0,94033.0,0.09044]
[1767708698906,0.17499464,94055.0,94040.0,0.010636]
[1767708699099,0.0914921,94054.0,94040.0,0.010636]
[1767708699513,0.17499464,94054.0,94040.0,0.010636]
[1767708699712,0.0914921,94053.0,94044.0,0.010635]
[1767708699907,0.0914921,94053.0,94033.0,0.09044]
[1767708699908,0.0914921,94053.0,94041.0,0.010636]
[1767708700117,0.0914921,94053.0,94044.0,0.010635]
[1767708700314,0.0914921,94053.0,94041.0,0.010636]
[1767708701213,0.0914921,94053.0,94038.0,0.010636]
[1767708701509,0.17499464,94053.0,94038.0,0.010636]
[1767708701707,0.0914921,94052.0,94038.0,0.010636]
[1767708701909,0.0914921,94049.0,94033.0,0.09044]
[1767708702117,0.0914921,94048.0,94036.0,0.010636]
[1767708703107,0.0914921,94046.0,94033.0,0.101077]
[1767708703299,0.0914921,94046.0,94033.0,0.010637]
[1767708703816,0.17499464,94045.0,94033.0,0.010637]
[1767708704003,0.0914921,94043.0,94033.0,0.010637]
[1767708704208,0.08350254,94038.0,94029.0,0.09044]
[1767708704409,0.0914921,94038.0,94029.0,0.09044]
[1767708704718,0.0914921,94037.0,94027.0,0.09044]
[1767708705214,0.0914921,94037.0,94028.0,0.16042538]
[1767708705413,0.1021281,94043.0,94028.0,0.16042538]
[1767708705815,0.0914921,94042.0,94028.0,0.16042538]
[1767708706016,0.0914921,94042.0,94030.0,0.010637]
[1767708706516,0.0914921,94042.0,94027.0,0.101077]
[1767708706813,0.0914921,94040.0,94028.0,0.1603733]
[1767708707406,0.0914921,94040.0,94030.0,0.10869431]
[1767708707604,0.0914921,94040.0,94031.0,0.010637]
[1767708709020,0.0914921,94045.0,94031.0,0.010637]
[1767708709319,0.0914921,94043.0,94030.0,0.10869431]
[1767708710210,0.17499464,94043.0,94031.0,0.010637]
[1767708710410,0.0914921,94042.0,94031.0,0.010637]
[1767708711212,0.0914921,94041.0,94031.0,0.010637]
[1767708712022,0.0914921,94041.0,94030.0,0.10869431]
[1767708712414,0.0914921,94041.0,94027.0,0.09044]
[1767708712620,0.0914921,94041.0,94035.0,0.010636]
[1767708713015,0.0914921,94041.0,94032.0,0.010637]
[1767708713916,0.0914921,94040.0,94030.0,0.10869431]
[1767708714113,0.08350254,94035.0,94014.0,0.010639]
[1767708714418,0.0914921,94030.0,94023.0,0.010638]
[1767708714718,0.17499464,94030.0,94020.0,0.010638]
[1767708714923,0.17499464,94029.0,94020.0,0.010638]
[1767708715218,0.0914921,94027.0,94022.0,0.00923516]
[1767708715426,0.0914921,94025.0,94016.0,0.010639]
[1767708715616,0.10869431,94030.0,94016.0,0.010639]
[1767708715923,0.10869431,94030.0,94017.0,0.15994817]
[1767708716125,0.11933131,94030.0,94017.0,0.15994817]
[1767708716619,0.010637,94030.0,94017.0,0.15994817]
[1767708716815,0.010638,94026.0,94017.0,0.15994817]
[1767708717025,0.10869431,94030.0,94017.0,0.15994817]
[1767708717222,0.010637,94027.0,94017.0,0.07788609]
[1767708717824,0.09333603,94024.0,94011.0,0.08430456]
[1767708718020,0.09333603,94024.0,94016.0,0.010639]
[1767708718627,0.09333603,94030.0,94018.0,0.010638]
[1767708719124,0.09333603,94030.0,94020.0,0.010638]
[1767708719913,0.09333603,94030.0,94017.0,0.010638]
[1767708720125,0.09333603,94030.0,94019.0,0.010638]
[1767708720715,0.09333603,94030.0,94014.0,0.07511859]
[1767708720918,0.09333603,94036.0,94021.0,0.07511859]
[1767708721122,0.10357899,94042.0,94025.0,0.010638]
[1767708721426,0.10357899,94042.0,94027.0,0.010637]
[1767708721617,0.18778213,94042.0,94027.0,0.010637]
[1767708721820,0.17714613,94041.0,94027.0,0.010637]
[1767708722022,0.17714613,94040.0,94024.0,0.010638]
[1767708722319,0.26758613,94045.0,94030.0,0.010637]
[1767708722516,0.010633,94064.0,94043.0,0.09063044]
[1767708722828,0.010633,94064.0,94021.0,0.010638]
[1767708722829,0.010631,94084.0,94057.0,0.07999444]
[1767708723031,0.01063,94095.0,94071.0,0.07999444]
[1767708723325,0.08420314,94094.0,94071.0,0.07999444]
[1767708723529,0.09294299,94093.0,94071.0,0.07999444]
[1767708723719,0.08420314,94091.0,94066.0,0.07999444]
[1767708724026,0.09044,94103.0,94074.0,0.07999444]
[1767708724027,0.10357199,94101.0,94074.0,0.07999444]
[1767708724228,0.17714613,94093.0,94066.0,0.17026883]
[1767708724420,0.09294299,94087.0,94063.0,0.15915055]
[1767708724731,0.09044,94096.0,94065.0,0.09027439]
[1767708724923,0.09044,94096.0,94068.0,0.07999444]
[1767708725319,0.05,94117.0,94057.0,0.09044]
[1767708725320,0.1065,94161.0,94081.0,0.07999444]
[1767708725623,0.053064,94250.0,94118.0,0.07999444]
[1767708725624,0.010621,94169.0,94118.0,0.07999444]
[1767708725826,0.010621,94169.0,94122.0,0.17026883]
[1767708726025,0.010621,94169.0,94125.0,0.17026883]
[1767708726220,0.010622,94161.0,94127.0,0.07999444]
[1767708726424,0.010623,94158.0,94128.0,0.09044]
[1767708726621,0.08420314,94172.0,94135.0,0.07999444]
[1767708726826,0.09294299,94174.0,94130.0,0.0601825]
[1767708726827,0.08420314,94164.0,94136.0,0.09044]
[1767708727130,0.08420314,94153.0,94122.0,0.15925172]
[1767708727428,0.08420314,94153.0,94129.0,0.15975108]
[1767708727615,0.08420314,94151.0,94129.0,0.15975108]
[1767708727817,0.08420314,94159.0,94130.0,0.17026883]
[1767708728013,0.010622,94164.0,94132.0,0.17026883]
[1767708728014,0.08420314,94164.0,94132.0,0.17026883]
[1767708728216,0.09482414,94170.0,94138.0,0.07999444]
[1767708728418,0.00183362,94154.0,94141.0,0.07999444]
[1767708728718,0.08420314,94168.0,94142.0,0.0904]
[1767708728923,0.09294299,94166.0,94137.0,0.17026883]
[1767708729120,0.08420314,94174.0,94141.0,0.07999444]
[1767708729321,0.09294299,94189.0,94150.0,0.07999444]
[1767708729624,0.09294299,94189.0,94142.0,0.0904]
[1767708729625,0.09294299,94185.0,94154.0,0.07999444]
[1767708729829,0.08420314,94182.0,94155.0,0.0904]
[1767708730142,0.09294299,94182.0,94159.0,0.07999444]
[1767708730513,0.09294299,94182.0,94160.0,0.0904]
[1767708730718,0.09294299,94174.0,94153.0,0.9188]
[1767708730927,0.09252318,94199.0,94142.0,0.084961]
[1767708730928,0.09294299,94166.0,94142.0,0.084961]
[1767708731130,0.09294299,94166.0,94153.0,0.16026963]
[1767708731328,0.09294299,94166.0,94154.0,0.0904]
[1767708731534,0.09294299,94166.0,94155.0,0.0904]
[1767708731716,0.08420314,94172.0,94155.0,0.25048966]
[1767708732029,0.09294299,94171.0,94155.0,0.0904]
[1767708732235,0.09294299,94184.0,94157.0,0.17026883]
[1767708732415,0.17714613,94173.0,94156.0,0.16008966]
[1767708732727,0.09294299,94163.0,94145.0,0.09036]
[1767708732915,0.09294299,94170.0,94142.0,0.07999444]
[1767708733121,0.09294299,94168.0,94146.0,0.15984326]
[1767708733328,0.17456314,94180.0,94148.0,0.17026883]
[1767708733524,0.09036,94180.0,94154.0,0.17026883]
[1767708733724,0.09036,94180.0,94155.0,0.09036]
[1767708733725,0.09294299,94179.0,94155.0,0.09036]
[1767708733919,0.08420314,94177.0,94155.0,0.09036]
[1767708734120,0.09294299,94175.0,94155.0,0.09036]
[1767708734515,0.053088,94206.0,94130.0,0.07999444]
[1767708734516,0.08420314,94158.0,94130.0,0.07999444]
[1767708734722,0.09294299,94166.0,94138.0,0.17026883]
[1767708734926,0.010622,94167.0,94138.0,0.17026883]
[1767708734927,0.09294299,94163.0,94142.0,0.15992789]
[1767708735126,0.09294299,94163.0,94143.0,0.09036]
[1767708735428,0.09294299,94178.0,94152.0,0.07999444]
[1767708735821,0.09036,94182.0,94157.0,0.17026883]
[1767708736022,0.09294299,94185.0,94162.0,0.17026883]
[1767708736224,0.09294299,94185.0,94162.0,0.09027439]
[1767708736426,0.09294299,94184.0,94158.0,0.09036]
[1767708736633,0.09294299,94180.0,94159.0,0.09036]
[1767708736831,0.09294299,94178.0,94159.0,0.09036]
[1767708737130,0.00116881,94170.0,94156.0,0.07999444]
[1767708737433,0.09294299,94178.0,94153.0,0.09027439]
[1767708737434,0.09294299,94183.0,94158.0,0.17026883]
[1767708737619,0.09294299,94183.0,94159.0,0.07999444]
[1767708737824,0.09294299,94190.0,94163.0,0.17026883]
[1767708738027,0.09294299,94190.0,94165.0,0.17026883]
[1767708738226,0.09036,94205.0,94159.0,0.07999444]
[1767708738227,0.00135862,94178.0,94159.0,0.07999444]
[1767708738524,0.09294299,94183.0,94160.0,0.17035444]
[1767708738726,0.09294299,94198.0,94167.0,0.17026883]
[1767708738931,0.08420314,94241.0,94182.0,0.07999444]
[1767708739231,0.10355999,94212.0,94183.0,0.07252]
[1767708739419,0.09294299,94198.0,94183.0,3.7e-07]
[1767708739618,0.001115,94191.0,94170.0,0.09036]
[1767708739832,0.0016725,94181.0,94171.0,0.09036]
[1767708740028,0.010617,94205.0,94177.0,0.17026883]
[1767708740331,0.10356099,94198.0,94178.0,0.09036]
[1767708740520,0.09294299,94191.0,94155.0,0.09027439]
[1767708740834,0.09294299,94186.0,94169.0,0.15838693]
[1767708741136,0.09294299,94184.0,94156.0,0.24874693]
[1767708741525,0.001115,94170.0,94162.0,0.15918533]
[1767708741726,0.01062,94181.0,94156.0,0.09036]
[1767708741921,0.10356299,94181.0,94163.0,0.15918533]
[1767708742128,0.10356299,94181.0,94139.0,0.010625]
[1767708742129,0.010624,94150.0,94143.0,9.7e-07]
[1767708742330,0.010624,94143.0,94128.0,0.09032]
[1767708742537,0.010624,94150.0,94127.0,0.05924981]
[1767708742735,0.010624,94150.0,94136.0,0.15843849]
[1767708742936,0.010624,94150.0,94128.0,0.15843849]
[1767708743132,0.09294299,94144.0,94128.0,4.9e-07]
[1767708743338,0.00154151,94136.0,94114.0,0.09032]
[1767708743638,8.306e-05,94135.0,94114.0,0.15936873]
[1767708744026,0.09294299,94160.0,94125.0,0.09027439]
[1767708744230,0.08420314,94152.0,94117.0,0.09027439]
[1767708744429,0.08420314,94150.0,94126.0,0.15478952]
[1767708744627,0.08420314,94146.0,94125.0,0.15978952]
[1767708744828,0.09294299,94139.0,94109.0,0.09032]
[1767708745032,0.09294299,94137.0,94109.0,0.09032]
[1767708745234,0.09294299,94137.0,94119.0,0.15978952]
[1767708745433,0.09294299,94137.0,94109.0,0.09032]
[1767708745840,0.09294299,94137.0,94120.0,0.16034761]
[1767708746139,0.09294299,94137.0,94109.0,0.09032]
[1767708746339,0.053108,94170.0,94109.0,0.09032]
[1767708746340,0.09294299,94146.0,94121.0,0.16034761]
[1767708746540,0.09032,94150.0,94123.0,0.09027439]
[1767708746742,0.09032,94149.0,94125.0,0.09027439]
[1767708747535,0.09032,94149.0,94127.0,0.09027439]
[1767708748239,0.09032,94149.0,94123.0,0.09032]
[1767708748541,0.10356699,94143.0,94111.0,0.10090239]
[1767708748732,0.10356699,94143.0,94112.0,0.09032]
[1767708748932,0.010625,94141.0,94120.0,0.15846557]
[1767708749133,0.10356799,94139.0,94109.0,0.07999444]
[1767708749334,0.010626,94129.0,94101.0,0.07999444]
[1767708749545,0.010626,94129.0,94110.0,0.15836122]
[1767708749735,0.010626,94129.0,94107.0,0.24868122]
[1767708749938,0.01831261,94127.0,94107.0,0.09032]
[1767708750241,0.01831261,94127.0,94104.0,0.010629]
[1767708750541,0.01831261,94127.0,94104.0,0.16010741]
[1767708750840,0.09294299,94125.0,94097.0,0.010629]
[1767708751044,0.010627,94123.0,94094.0,0.18059439]
[1767708751233,0.09032,94124.0,94104.0,0.16010741]
[1767708751429,0.01831261,94127.0,94102.0,0.09994493]
[1767708751634,0.09131767,94142.0,94116.0,0.09994493]
[1767708751948,0.09032,94143.0,94122.0,0.11057193]
[1767708752245,0.09032,94147.0,94123.0,0.25866036]
[1767708752447,0.00152035,94135.0,94124.0,0.09994493]
[1767708752642,0.09032,94147.0,94125.0,0.19371064]
[1767708752949,0.11925661,94147.0,94125.0,0.25907291]
[1767708753133,0.11925661,94147.0,94125.0,0.09994493]
[1767708753329,0.11925661,94147.0,94126.0,0.1585358]
[1767708753534,0.02893661,94147.0,94126.0,0.1585358]
[1767708753745,0.01831261,94147.0,94126.0,0.1585358]
[1767708753946,0.01831261,94147.0,94127.0,0.010626]
[1767708754348,0.01831261,94147.0,94128.0,0.1585358]
[1767708754739,0.10963028,94147.0,94128.0,0.1585358]
[1767708755048,0.10963028,94147.0,94117.0,0.09376571]
[1767708755049,0.01062,94186.0,94137.0,0.010625]
[1767708755349,0.05393445,94185.0,94169.0,0.09994493]
[1767708755544,0.00812,94199.0,94169.0,0.09994493]
[1767708755545,0.09032,94184.0,94169.0,0.09994493]
[1767708755747,0.010618,94196.0,94170.0,0.55831341]
[1767708755748,0.01831261,94190.0,94170.0,0.55831341]
[1767708755945,0.09032,94189.0,94170.0,0.55831341]
[1767708756141,0.00364353,94188.0,94170.0,0.55831341]
[1767708756340,0.010619,94188.0,94170.0,0.55466988]
[1767708756646,0.01831261,94190.0,94171.0,0.010621]
[1767708756949,0.01831261,94190.0,94170.0,0.55466988]
[1767708756950,0.24324,94187.0,94170.0,0.3963574]
[1767708757144,0.01831261,94190.0,94171.0,0.11056593]
[1767708757351,0.09032,94189.0,94175.0,0.09994493]
[1767708757551,0.01831261,94190.0,94175.0,0.09994493]
[1767708757753,0.09032,94189.0,94176.0,0.3963574]
[1767708758251,0.01831261,94190.0,94176.0,0.3963574]
[1767708758449,0.01831261,94190.0,94177.0,0.09994493]
[1767708758660,0.09032,94189.0,94177.0,0.11056493]
[1767708758843,0.01831261,94190.0,94177.0,0.11056493]
[1767708759043,0.09032,94189.0,94177.0,0.11056493]
[1767708759353,0.09032,94188.0,94177.0,0.09994493]
[1767708759750,0.09032,94188.0,94176.0,0.3963574]
[1767708759951,0.01062,94184.0,94176.0,0.30935368]
[1767708760155,0.01062,94184.0,94159.0,0.09994493]
[1767708760156,0.01062,94181.0,94159.0,0.09994493]
[1767708760363,0.010621,94168.0,94159.0,0.09994493]
[1767708760561,0.01062,94178.0,94161.0,0.15877435]
[1767708760759,0.78044,94189.0,94161.0,0.09376571]
[1767708761058,0.09032,94188.0,94171.0,0.010621]
[1767708761266,0.09131767,94204.0,94170.0,0.010621]
[1767708761453,0.010619,94192.0,94170.0,0.010621]
[1767708761648,0.010619,94190.0,94166.0,0.09376571]
[1767708762151,0.09032,94189.0,94153.0,0.09376571]
[1767708762355,0.09032,94192.0,94171.0,0.09376571]
[1767708762549,0.50424,94206.0,94180.0,0.01062]
[1767708762550,0.09032,94193.0,94180.0,0.01062]
[1767708762855,0.09032,94192.0,94186.0,0.010619]
[1767708763158,0.09032,94191.0,94186.0,0.09994493]
[1767708763755,0.91564,94206.0,94186.0,0.11056393]
[1767708763954,0.09032,94205.0,94186.0,0.11056393]
[1767708764556,0.010614,94234.0,94187.0,0.09376571]
[1767708764754,0.010615,94229.0,94206.0,0.010617]
[1767708764956,0.09032,94228.0,94206.0,0.11056193]
[1767708765267,0.010615,94227.0,94206.0,0.09994493]
[1767708765670,0.010614,94236.0,94209.0,0.09994493]
[1767708765870,0.010614,94233.0,94209.0,0.09994493]
[1767708766172,0.010615,94227.0,94209.0,0.09994493]
[1767708766354,0.010614,94232.0,94209.0,0.09994493]
[1767708766556,0.010615,94229.0,94209.0,0.09994493]
[1767708766763,0.010615,94222.0,94197.0,0.010618]
[1767708766969,0.09032,94223.0,94201.0,0.09994493]
[1767708767361,0.010616,94214.0,94201.0,0.09994493]
[1767708767666,0.00143502,94208.0,94201.0,0.09994493]
[1767708767964,0.010617,94209.0,94190.0,0.010619]
[1767708768164,0.09032,94223.0,94192.0,0.09994493]
[1767708768368,0.010617,94210.0,94196.0,0.15876209]
[1767708768664,0.010617,94206.0,94196.0,0.09994493]
[1767708768967,0.09131767,94221.0,94197.0,2.1e-07]
[1767708769163,3.18786988,94320.0,94197.0,2.1e-07]
[1767708769164,0.010615,94230.0,94209.0,0.19371064]
[1767708769364,0.010615,94230.0,94197.0,2.1e-07]
[1767708769365,0.09131767,94256.0,94222.0,0.010615]
[1767708769571,0.09028,94255.0,94228.0,0.09994493]
[1767708769752,0.010613,94244.0,94228.0,0.09994493]
[1767708770151,0.010612,94253.0,94219.0,0.19371064]
[1767708770368,0.010613,94247.0,94219.0,0.09994493]
[1767708770567,0.010614,94232.0,94219.0,0.09994493]
[1767708770870,0.010615,94226.0,94211.0,0.09376571]
[1767708771175,0.09131767,94242.0,94218.0,0.15986263]
[1767708771362,0.010615,94224.0,94218.0,0.15986263]
[1767708771559,0.09028,94232.0,94209.0,0.09028]
[1767708771864,0.010617,94210.0,94195.0,0.09376571]
[1767708772061,0.09028,94219.0,94195.0,0.09376571]
[1767708772258,0.010617,94209.0,94196.0,0.15899172]
[1767708772454,0.09028,94219.0,94196.0,0.15899172]
[1767708772455,0.09131767,94218.0,94196.0,7.2e-07]
[1767708772659,0.010618,94203.0,94184.0,0.01062]
[1767708772873,0.010618,94203.0,94194.0,0.15982538]
[1767708773163,0.100897,94207.0,94197.0,0.15982538]
[1767708773360,0.100897,94207.0,94184.0,0.01062]
[1767708773361,0.100897,94207.0,94195.0,0.15982538]
[1767708773559,0.100897,94207.0,94184.0,0.11056493]
[1767708773560,0.010617,94206.0,94190.0,0.15920161]
[1767708773760,0.09028,94207.0,94195.0,0.11056293]
[1767708773955,0.010612,94250.0,94195.0,0.11056293]
[1767708773956,0.010616,94221.0,94201.0,0.09994493]
[1767708774170,0.09028,94228.0,94204.0,0.09994493]
[1767708774358,0.010615,94222.0,94204.0,0.09994493]
[1767708774562,0.010615,94222.0,94203.0,0.09376571]
[1767708774563,0.010615,94222.0,94201.0,0.010618]
[1767708775268,0.010615,94222.0,94139.0,0.00212453]
[1767708775269,0.4,94221.0,94171.0,0.09376571]
[1767708775474,0.02755253,94204.0,94164.0,0.05494449]
[1767708775662,0.010619,94193.0,94172.0,0.15956021]
[1767708775857,0.10193667,94190.0,94170.0,0.15956021]
[1767708776071,0.010619,94188.0,94165.0,0.15956021]
[1767708776266,0.010619,94188.0,94173.0,0.15956021]
[1767708776570,0.010619,94188.0,94171.0,0.16009599]
[1767708776760,0.010619,94188.0,94163.0,0.16009599]
[1767708776761,0.010619,94188.0,94162.0,0.16009599]
[1767708776963,0.010619,94194.0,94164.0,0.16009599]
[1767708777264,0.010619,94192.0,94163.0,0.16009599]
[1767708777468,0.010619,94192.0,94162.0,0.24257417]
[1767708777770,0.010619,94192.0,94163.0,0.17900932]
[1767708777771,0.09466266,94192.0,94163.0,0.17900932]
[1767708777967,0.010619,94192.0,94165.0,0.09653114]
[1767708778172,0.03187106,94191.0,94162.0,0.1583718]
[1767708778367,0.08404366,94187.0,94166.0,0.1583718]
[1767708778567,0.01062,94181.0,94165.0,0.15953153]
[1767708778875,0.01062,94181.0,94161.0,9.199e-05]
[1767708779370,0.01062,94181.0,94162.0,0.15953153]
[1767708780163,0.09028,94187.0,94162.0,0.25606267]
[1767708780363,0.09028,94187.0,94163.0,0.08247818]
[1767708780569,0.010619,94186.0,94164.0,0.08247818]
[1767708780770,0.010619,94186.0,94164.0,0.33861158]
[1767708780964,0.08404366,94194.0,94166.0,0.09653114]
[1767708781158,0.08404366,94194.0,94170.0,0.07558695]
[1767708781159,0.09028,94193.0,94170.0,0.07558695]
[1767708781364,0.010618,94200.0,94173.0,0.17131706]
[1767708781560,0.010619,94190.0,94174.0,0.07558695]
[1767708781874,0.09028,94200.0,94176.0,0.17131706]
[1767708782076,0.010619,94193.0,94176.0,0.17131706]
[1767708782276,0.010619,94189.0,94176.0,0.17131706]
[1767708782574,0.010619,94193.0,94176.0,0.17131706]
[1767708782975,0.010619,94189.0,94176.0,0.17131706]
[1767708783174,0.010619,94189.0,94170.0,0.09028]
[1767708783378,0.010619,94194.0,94170.0,0.26159706]
[1767708783579,0.010619,94194.0,94171.0,0.15940799]
[1767708783775,0.010619,94190.0,94171.0,0.15940799]
[1767708784367,0.010619,94190.0,94171.0,0.33072505]
[1767708784574,0.07062984,94199.0,94171.0,0.33072505]
[1767708785084,0.01062,94180.0,94171.0,0.33072505]
[1767708785266,0.07062984,94199.0,94171.0,0.23499494]
[1767708785467,0.01062,94181.0,94171.0,0.15940799]
[1767708785886,0.01062,94181.0,94169.0,0.15997933]
[1767708786175,0.01062,94178.0,94165.0,0.07558695]
[1767708786472,0.07062984,94199.0,94171.0,0.09573011]
[1767708786670,0.07062984,94199.0,94166.0,0.16016659]
[1767708786972,0.01062,94178.0,94172.0,5.9e-07]
[1767708787173,0.01062,94178.0,94171.0,0.16016659]
[1767708787474,0.01062,94182.0,94164.0,0.2558967]
[1767708787676,0.09028,94189.0,94172.0,6.2e-07]
[1767708787865,0.09028,94189.0,94165.0,0.09573011]
[1767708787866,0.09028,94189.0,94171.0,0.15916862]
[1767708788063,0.01062,94180.0,94170.0,0.09573011]
[1767708788477,0.01062,94184.0,94174.0,0.09573011]
[1767708788865,0.01062,94184.0,94170.0,0.1592968]
[1767708789066,0.01062,94185.0,94171.0,0.09573011]
[1767708789270,0.09028,94193.0,94171.0,0.09573011]
[1767708789476,0.01062,94185.0,94171.0,0.25502691]
[1767708790076,0.05537133,94206.0,94171.0,0.25502691]
[1767708790077,0.010617,94207.0,94177.0,0.09573011]
[1767708790278,0.29416,94205.0,94182.0,0.09573011]
[1767708791186,0.36478984,94205.0,94175.0,0.09573011]
[1767708791685,0.010619,94188.0,94175.0,0.09573011]
[1767708792073,0.01062,94185.0,94175.0,0.09573011]
[1767708792275,0.010619,94190.0,94175.0,0.09573011]
[1767708793680,0.010619,94191.0,94175.0,0.09573011]
[1767708794082,0.09028,94193.0,94175.0,0.09573011]
[1767708794490,0.100899,94193.0,94175.0,0.09573011]
[1767708794786,0.01062,94185.0,94175.0,0.09573011]
[1767708795285,0.01062,94185.0,94167.0,0.07558695]
[1767708795586,0.01062,94185.0,94174.0,0.15848652]
[1767708795785,0.07062984,94192.0,94174.0,5.2e-07]
[1767708795980,0.07062984,94192.0,94167.0,0.07558695]
[1767708796178,0.07062984,94192.0,94168.0,0.09573011]
[1767708796482,0.01062,94179.0,94168.0,0.25421663]
[1767708796779,0.010619,94191.0,94169.0,0.09573011]
[1767708796980,0.010621,94177.0,94169.0,0.09573011]
[1767708797186,0.07062984,94192.0,94170.0,0.15835273]
[1767708797789,0.010621,94175.0,94170.0,0.15835273]
[1767708797978,0.010619,94190.0,94170.0,0.15835273]
[1767708797979,0.08124884,94190.0,94170.0,0.15835273]
[1767708798185,0.010621,94177.0,94168.0,0.15917908]
[1767708798579,0.010621,94177.0,94163.0,0.18601011]
[1767708798780,0.010621,94171.0,94169.0,7.4e-07]
[1767708798981,0.07062984,94184.0,94165.0,4.8e-07]
[1767708799182,0.010621,94169.0,94164.0,0.15881774]
[1767708799377,0.01062,94183.0,94162.0,0.0342535]
[1767708799584,0.010622,94166.0,94165.0,6.4e-07]
[1767708799885,0.010622,94166.0,94163.0,6.4e-07]
[1767708800093,0.010622,94166.0,94162.0,2.8e-07]
[1767708800289,0.01062,94179.0,94156.0,0.09573011]
[1767708800481,0.010622,94164.0,94161.0,6.7e-07]
[1767708801192,0.010621,94176.0,94161.0,6.7e-07]
[1767708801486,0.010622,94164.0,94161.0,6.7e-07]
[1767708807088,0.08125184,94164.0,94142.0,0.17959223]
[1767708807285,0.08384774,94170.0,94142.0,2.3e-07]
[1767708807489,0.07062984,94161.0,94143.0,0.16021972]
[1767708807690,0.010624,94150.0,94143.0,0.16021972]
[1767708807884,0.07062984,94161.0,94140.0,0.15914549]
[1767708807885,0.07062984,94158.0,94140.0,0.15914549]
[1767708808079,0.07073674,94157.0,94138.0,0.09032]
[1767708808284,0.010624,94147.0,94138.0,0.09032]
[1767708808590,0.07073674,94157.0,94136.0,0.09032]
[1767708808591,0.010624,94143.0,94136.0,0.09032]
[1767708808887,0.07062984,94152.0,94139.0,5.7e-07]
[1767708809091,0.010625,94141.0,94132.0,5.7e-07]
[1767708809288,0.010624,94143.0,94131.0,0.09032]
[1767708809596,0.0001069,94157.0,94142.0,0.09573011]
[1767708809785,0.09032,94166.0,94149.0,0.09573011]
[1767708810095,0.010622,94165.0,94149.0,0.09573011]